fUST/lending_fUST_20250630
["ID","MTS","AMOUNT","RATE_DAILY","PERIOD"]
[368596000,1751221848176,-3696.31837008,0.000198,2]
[368596001,1751221848187,-673.38,0.00019864,3]
[368596002,1751221848197,-537.4,0.000199,2]
[368596003,1751221848207,-4441.36811222,0.00019934,2]
[368596004,1751221848217,-1346.76,0.00019965,3]
[368596005,1751221848227,-2693.52,0.00019975,3]
[368596006,1751221848236,-847.31290578,0.00019975,3]
[368596007,1751221848246,-213.82031328,0.00019975,3]
[368596008,1751221848256,-6286.97197614,0.00019975,3]
[368596009,1751221848293,-4791.78124996,0.00019975,3]
[368596010,1751221848385,-320.17165751,0.00019975,3]
[368596011,1751221848454,-460.0,0.0001835,2]
[368596012,1751221848464,-272.95754763,0.00018351,2]
[368596013,1751221848477,-187.04245237,0.00018351,2]
[368596014,1751221848487,-527.42,0.00018624,2]
[368596015,1751221848497,-1168.1344373,0.00019975,3]
[368596016,1751221848507,-690.642,0.00019981,2]
[368596017,1751221848516,-207.4,0.00019981,2]
[368596018,1751221848526,-5000.0,0.00019981,2]
[368596019,1751221848535,-500.0,0.00019981,2]
[368596020,1751221848545,-500.0,0.00019981,2]
[368596021,1751221848554,-500.0,0.00019981,2]
[368596022,1751221848564,-2444.2393665,0.00019981,2]
[368596023,1751221848574,-500.0,0.00019981,2]
[368596024,1751221848584,-500.0,0.00019981,2]
[368596025,1751221848594,-631.01078368,0.00019981,2]
[368596026,1751221848603,-5387.04,0.00019985,3]
[368596027,1751221848613,-460.0,0.00019993,2]
[368596028,1751221848623,-460.0,0.00019993,2]
[368596029,1751221848633,-1560.5,0.00019993,2]
[368596030,1751221848643,-2113.89,0.00019994,2]
[368596031,1751221848651,-2237.65,0.00019994,2]
[368596032,1751221848660,-460.0,0.00019994,2]
[368596033,1751221848669,-460.0,0.00019994,2]
[368596034,1751221848678,-2582.8,0.00019994,2]
[368596035,1751221848689,-2959.43,0.00019994,2]
[368596036,1751221848699,-2684.6,0.00019994,2]
[368596037,1751221848709,-460.0,0.00019994,2]
[368596038,1751221848719,-1067.58,0.00019994,2]
[368596039,1751221848728,-460.0,0.00019994,2]
[368596040,1751221848738,-460.0,0.00019994,2]
[368596041,1751221848748,-460.0,0.00019994,2]
[368596042,1751221848757,-513.98,0.00019995,2]
[368596043,1751221848767,-532.18,0.00019995,2]
[368596044,1751221848777,-466.59,0.00019995,2]
[368596045,1751221848787,-486.24,0.00019995,2]
[368596046,1751221848797,-460.0,0.00019995,2]
[368596047,1751221848806,-460.0,0.00019995,2]
[368596048,1751221848816,-811.85,0.00019995,2]
[368596049,1751221848827,-460.0,0.00019995,2]
[368596050,1751221848836,-503.6,0.00019995,2]
[368596051,1751221848846,-3125.73,0.00019995,2]
[368596052,1751221848856,-572.39,0.00019995,2]
[368596053,1751221848865,-1074.12,0.00019995,2]
[368596054,1751221848875,-635.17,0.00019995,2]
[368596055,1751221848884,-901.87,0.00019995,2]
[368596056,1751221848894,-460.0,0.00019995,2]
[368596057,1751221848904,-866.07,0.00019995,2]
[368596058,1751221848913,-448.96,0.00019995,2]
[368596059,1751221848923,-460.0,0.00019995,2]
[368596060,1751221848932,-967.73,0.00019995,2]
[368596061,1751221848943,-460.0,0.00019995,2]
[368596062,1751221848954,-460.0,0.00019996,2]
[368596063,1751221848964,-523.91,0.00019996,2]
[368596064,1751221848974,-460.0,0.00019996,2]
[368596065,1751221848984,-36.43733854,0.00019996,2]
[368596066,1751221849108,-495.37266146,0.00019996,2]
[368596067,1751221849121,-466.06,0.00019996,2]
[368596068,1751221849131,-185.38133854,0.00019996,2]
[368596069,1751221849143,-408.4373586,0.00019996,2]
[368596070,1751221849155,-506.24,0.00019996,2]
[368596071,1751221849165,-460.0,0.00019996,2]
[368596072,1751221849175,-1098.22,0.00019996,2]
[368596073,1751221849185,-460.0,0.00019996,2]
[368596074,1751221849198,-1287.15,0.00019996,2]
[368596075,1751221849209,-765.75,0.00019996,2]
[368596076,1751221849219,-460.0,0.00019996,2]
[368596077,1751221849230,-644.97,0.00019996,2]
[368596078,1751221849240,-1339.65,0.00019996,2]
[368596079,1751221849250,-4013.52,0.00019996,2]
[368596080,1751221849260,-701.45,0.00019996,2]
[368596081,1751221849270,-460.0,0.00019998,2]
[368596082,1751221849280,-794.39,0.00019998,2]
[368596083,1751221849291,-31614.64647405,0.0002,7]
[368596084,1751221849300,-847.31290578,0.0002,7]
[368596085,1751221849311,-160.0,0.0002,3]
[368596086,1751221849320,-852.55930766,0.0002,2]
[368596087,1751221849330,-213.82031328,0.0002,7]
[368596088,1751221849340,-12567.05932091,0.0002,7]
[368596089,1751221849350,-300.0,0.0002,2]
[368596090,1751221849359,-420.0,0.00020013,2]
[368596091,1751221849369,-633.0,0.00020015,2]
[368596092,1751221849380,-716.195754,0.00020036,2]
[368596093,1751221849389,-1500.0,0.00020037,2]
[368596094,1751221849398,-366.1147399,0.00020082,2]
[368596095,1751221849408,-613.62792901,0.00020091,2]
[368596096,1751221849418,-151.0,0.000201,3]
[368596097,1751221849428,-480.0,0.00020111,2]
[368596098,1751221849438,-1044.81627693,0.00020123,2]
[368596099,1751221849447,-1000.0,0.00020125,2]
[368596100,1751221849458,-1500.0,0.00020125,2]
[368596101,1751221849467,-4441.36811222,0.00020141,2]
[368596102,1751221849478,-1500.0,0.00020151,2]
[368596103,1751221849487,-1044.26898975,0.00020154,2]
[368596104,1751221849497,-723.77981184,0.00020171,2]
[368596105,1751221849506,-304.672985,0.00020187,2]
[368596106,1751221849515,-274.06445148,0.00020243,2]
[368596107,1751221849525,-460.0,0.00020267,2]
[368596108,1751221849534,-460.0,0.00020267,2]
[368596109,1751221849543,-1560.5,0.00020267,2]
[368596110,1751221849553,-2113.89,0.00020268,2]
[368596111,1751221849563,-2237.65,0.00020268,2]
[368596112,1751221849573,-460.0,0.00020268,2]
[368596113,1751221849582,-460.0,0.00020268,2]
[368596114,1751221849592,-2582.8,0.00020268,2]
[368596115,1751221849602,-2959.43,0.00020268,2]
[368596116,1751221849611,-2684.6,0.00020268,2]
[368596117,1751221849621,-460.0,0.00020268,2]
[368596118,1751221849631,-1067.58,0.00020268,2]
[368596119,1751221849641,-460.0,0.00020268,2]
[368596120,1751221849650,-460.0,0.00020268,2]
[368596121,1751221849660,-460.0,0.00020268,2]
[368596122,1751221849670,-513.98,0.00020269,2]
[368596123,1751221849679,-532.18,0.00020269,2]
[368596124,1751221849688,-466.59,0.00020269,2]
[368596125,1751221849698,-486.24,0.00020269,2]
[368596126,1751221849708,-460.0,0.00020269,2]
[368596127,1751221849717,-460.0,0.00020269,2]
[368596128,1751221849726,-811.85,0.00020269,2]
[368596129,1751221849735,-460.0,0.00020269,2]
[368596130,1751221849744,-503.6,0.00020269,2]
[368596131,1751221849753,-3125.73,0.00020269,2]
[368596132,1751221849763,-572.39,0.00020269,2]
[368596133,1751221849772,-1074.12,0.00020269,2]
[368596134,1751221849781,-635.17,0.00020269,2]
[368596135,1751221849790,-901.87,0.00020269,2]
[368596136,1751221849799,-460.0,0.00020269,2]
[368596137,1751221849809,-866.07,0.00020269,2]
[368596138,1751221849818,-460.0,0.00020269,2]
[368596139,1751221849827,-967.73,0.00020269,2]
[368596140,1751221849836,-458.40785089,0.00020269,2]
[368596141,1751221849845,-460.0,0.0002027,2]
[368596142,1751221849856,-523.91,0.0002027,2]
[368596143,1751221849866,-460.0,0.0002027,2]
[368596144,1751221849876,-531.81,0.0002027,2]
[368596145,1751221849885,-466.06,0.0002027,2]
[368596146,1751221849895,-506.24,0.0002027,2]
[368596147,1751221849904,-460.0,0.0002027,2]
[368596148,1751221849914,-1098.22,0.0002027,2]
[368596149,1751221849923,-460.0,0.0002027,2]
[368596150,1751221849933,-1287.15,0.0002027,2]
[368596151,1751221849942,-765.75,0.0002027,2]
[368596152,1751221849952,-460.0,0.0002027,2]
[368596153,1751221849962,-644.97,0.0002027,2]
[368596154,1751221849971,-1339.65,0.0002027,2]
[368596155,1751221849981,-4013.52,0.0002027,2]
[368596156,1751221849990,-701.45,0.0002027,2]
[368596157,1751221850000,-460.0,0.00020272,2]
[368596158,1751221850009,-794.39,0.00020272,2]
[368596159,1751221850019,-151.0,0.000203,3]
[368596160,1751221850028,-2674.25726464,0.000203,2]
[368596161,1751221850037,-17094.79129934,0.00020314,2]
[368596162,1751221850047,-4441.36811222,0.00020348,3]
[368596163,1751221850057,-865.0,0.00020406,2]
[368596164,1751221850067,-354.6593042,0.00020485,2]
[368596165,1751221850076,-5000.0,0.000205,2]
[368596166,1751221850085,-5000.0,0.000205,2]
[368596167,1751221850095,-5000.0,0.000205,2]
[368596168,1751221850105,-5000.0,0.000205,2]
[368596169,1751221850118,-1293.82991681,0.000205,7]
[368596170,1751221850127,-143772.20482226,0.00020519,2]
[368596171,1751221850140,-727.84677005,0.00020519,2]
[368596172,1751221850238,-463.78861951,0.00018349,2]
[368596173,1751221850248,-153.0,0.00018904,2]
[368596174,1751221850257,-652.20686551,0.00020519,2]
[368596175,1751221850269,-4452.47277402,0.00020519,2]
[368596176,1751221850280,-1157.453015,0.00020519,2]
[368596177,1751221850292,-84628.27247042,0.00020519,2]
[368596178,1751221850304,-478.90615504,0.00020519,2]
[368596180,1751222840754,291.820366,0.00013699,2]
[368596205,1751223032534,-333.0,0.00018346,2]
[368596207,1751223032545,-300.0,0.00018346,2]
[368596209,1751223032555,-1078.2980258,0.00018346,2]
[368596224,1751223038227,-121.7019742,0.00018346,2]
[368596225,1751223038236,-460.0,0.00018346,2]
[368596226,1751223038245,-460.0,0.00018347,2]
[368596227,1751223038255,-460.0,0.00018347,2]
[368596228,1751223038264,-2640.81,0.00018347,2]
[368596229,1751223038273,-460.0,0.00018347,2]
[368596230,1751223038282,-460.0,0.00018347,2]
[368596231,1751223038292,-2698.79,0.00018347,2]
[368596232,1751223038301,-460.0,0.00018347,2]
[368596233,1751223038310,-495.09,0.00018347,2]
[368596234,1751223038320,-232.56138905,0.00018347,2]
[368596235,1751223038328,-460.0,0.00018347,2]
[368596236,1751223038338,-460.0,0.00018347,2]
[368596237,1751223038347,-460.0,0.00018347,2]
[368596238,1751223038357,-460.0,0.00018347,2]
[368596239,1751223038366,-3403.78,0.00018347,2]
[368596240,1751223038376,-3125.27,0.00018347,2]
[368596241,1751223038385,-460.0,0.00018347,2]
[368596242,1751223038394,-3379.8,0.00018347,2]
[368596243,1751223038404,-475.17,0.00018347,2]
[368596244,1751223038413,-460.0,0.00018347,2]
[368596245,1751223038422,-1904.63,0.00018347,2]
[368596246,1751223038432,-460.0,0.00018347,2]
[368596247,1751223038441,-474.4,0.00018347,2]
[368596248,1751223038451,-460.0,0.00018347,2]
[368596249,1751223038461,-460.0,0.00018347,2]
[368596250,1751223038473,-460.0,0.00018347,2]
[368596251,1751223038482,-460.0,0.00018347,2]
[368596252,1751223038492,-1711.81,0.00018347,2]
[368596253,1751223038503,-460.0,0.00018347,2]
[368596254,1751223038513,-1294.22,0.00018347,2]
[368596255,1751223038522,-238.97896341,0.00018347,2]
[368596256,1751223038531,-243.15,0.00018347,2]
[368596257,1751223038541,-460.0,0.00018347,2]
[368596258,1751223038551,-579.16,0.00018347,2]
[368596259,1751223038561,-460.0,0.00018348,2]
[368596260,1751223038570,-460.0,0.00018348,2]
[368596261,1751223038580,-395.45,0.00018348,2]
[368596262,1751223038590,-460.0,0.00018348,2]
[368596263,1751223038600,-460.0,0.00018348,2]
[368596264,1751223038610,-460.0,0.00018348,2]
[368596265,1751223038619,-460.0,0.00018348,2]
[368596266,1751223038629,-460.0,0.00018348,2]
[368596267,1751223038639,-460.0,0.00018348,2]
[368596268,1751223038649,-460.0,0.00018348,2]
[368596269,1751223038658,-460.0,0.00018348,2]
[368596270,1751223038668,-460.0,0.00018348,2]
[368596271,1751223038677,-460.0,0.00018348,2]
[368596272,1751223038686,-460.0,0.00018348,2]
[368596273,1751223038695,-460.0,0.00018348,2]
[368596274,1751223038706,-460.0,0.00018348,2]
[368596275,1751223038716,-460.0,0.00018348,2]
[368596276,1751223038727,-598.66,0.00018348,2]
[368596277,1751223038736,-591.01,0.00018348,2]
[368596278,1751223038747,-675.33,0.00018348,2]
[368596279,1751223038758,-298.78403378,0.00018348,2]
[368596280,1751223038770,-161.21596622,0.00018348,2]
[368596281,1751223038780,-564.0,0.00018348,2]
[368596282,1751223038790,-460.0,0.00018348,2]
[368596283,1751223038799,-998.47,0.00018348,2]
[368596284,1751223038809,-460.0,0.00018348,2]
[368596285,1751223038819,-460.0,0.00018348,2]
[368596286,1751223038828,-476.42,0.00018348,2]
[368596287,1751223038838,-460.0,0.00018348,2]
[368596288,1751223038847,-460.0,0.00018348,2]
[368596289,1751223038857,-3758.81,0.00018348,2]
[368596290,1751223038866,-460.0,0.00018348,2]
[368596291,1751223038875,-460.0,0.00018348,2]
[368596292,1751223038885,-460.0,0.00018348,2]
[368596293,1751223038894,-543.37,0.00018348,2]
[368596294,1751223038904,-1316.8,0.00018348,2]
[368596295,1751223038913,-460.0,0.00018348,2]
[368596296,1751223038923,-460.0,0.00018348,2]
[368596297,1751223038935,-460.0,0.00018348,2]
[368596298,1751223038945,-460.0,0.00018348,2]
[368596299,1751223038954,-665.27,0.00018348,2]
[368596300,1751223038964,-1077.02,0.00018348,2]
[368596301,1751223038973,-460.0,0.00018348,2]
[368596302,1751223038982,-460.0,0.00018348,2]
[368596303,1751223038991,-460.0,0.00018348,2]
[368596304,1751223039000,-781.12,0.00018348,2]
[368596305,1751223039010,-460.0,0.00018348,2]
[368596306,1751223039019,-460.0,0.00018348,2]
[368596307,1751223039029,-460.0,0.00018348,2]
[368596308,1751223039038,-460.0,0.00018348,2]
[368596309,1751223039047,-1110.61,0.00018348,2]
[368596310,1751223039056,-460.0,0.00018348,2]
[368596311,1751223039066,-554.53,0.00018348,2]
[368596312,1751223039075,-460.0,0.00018348,2]
[368596313,1751223039084,-379.19118822,0.00018349,2]
[368596314,1751223039094,-460.0,0.00018349,2]
[368596315,1751223039103,-460.0,0.00018349,2]
[368596316,1751223039113,-460.0,0.00018349,2]
[368596317,1751223039123,-532.27,0.00018349,2]
[368596318,1751223039133,-460.0,0.00018349,2]
[368596319,1751223039142,-460.0,0.00018349,2]
[368596320,1751223039151,-460.0,0.00018349,2]
[368596321,1751223039161,-501.16,0.00018349,2]
[368596322,1751223039171,-648.71,0.00018349,2]
[368596323,1751223039180,-150.88187167,0.00018349,2]
[368596324,1751223039189,-460.0,0.00018349,2]
[368596325,1751223039198,-460.0,0.00018349,2]
[368596326,1751223039208,-460.0,0.00018349,2]
[368596327,1751223039217,-50.78733226,0.00018349,2]
[368596328,1751223039229,-409.21266774,0.00018349,2]
[368596329,1751223039239,-13.68733226,0.00018349,2]
[368596330,1751223039251,-446.31266774,0.00018349,2]
[368596331,1751223039260,-637.61,0.00018349,2]
[368596332,1751223039269,-572.94,0.00018349,2]
[368596333,1751223039278,-442.99596733,0.00018349,2]
[368596334,1751223039290,-17.00403267,0.00018349,2]
[368596335,1751223039299,-673.79,0.00018349,2]
[368596336,1751223039309,-1102.64,0.00018349,2]
[368596337,1751223039318,-460.0,0.00018349,2]
[368596338,1751223039327,-460.0,0.00018349,2]
[368596339,1751223039338,-460.0,0.00018349,2]
[368596340,1751223039348,-460.0,0.00018349,2]
[368596341,1751223039357,-1332.91,0.00018349,2]
[368596342,1751223039367,-460.0,0.00018349,2]
[368596343,1751223039376,-906.67,0.00018349,2]
[368596344,1751223039531,-460.0,0.00018349,2]
[368596345,1751223039546,-460.0,0.00018349,2]
[368596346,1751223039557,-460.0,0.00018349,2]
[368596347,1751223039568,-460.0,0.00018349,2]
[368596348,1751223039578,-774.46,0.00018349,2]
[368596349,1751223039588,-460.0,0.00018349,2]
[368596350,1751223039598,-49.53448299,0.00018349,2]
[368596351,1751223039617,-410.46551701,0.00018349,2]
[368596352,1751223039627,-170.0489206,0.00018349,2]
[368596353,1751223039640,-289.9510794,0.00018349,2]
[368596354,1751223039649,-128.75045279,0.00018349,2]
[368596355,1751223039661,-1465.19954721,0.00018349,2]
[368596356,1751223039670,-460.0,0.00018349,2]
[368596357,1751223039680,-460.0,0.00018349,2]
[368596358,1751223039690,-736.5,0.00018349,2]
[368596359,1751223039699,-1544.83,0.00018349,2]
[368596360,1751223039710,-460.0,0.00018349,2]
[368596361,1751223039719,-460.0,0.00018349,2]
[368596362,1751223039729,-4598.83,0.00018349,2]
[368596363,1751223039738,-461.3544805,0.0001835,2]
[368596364,1751223039751,-460.0,0.0001835,2]
[368596365,1751223039763,-576.57480643,0.0001835,2]
[368596366,1751223039773,-460.0,0.00018351,2]
[368596367,1751223039785,-460.0,0.00018351,2]
[368596368,1751223039794,-207.18164709,0.00018351,2]
[368596369,1751223039804,-678.18,0.00018351,2]
[368596370,1751223039813,-538.8,0.00018351,2]
[368596371,1751223039822,-460.0,0.00018351,2]
[368596372,1751223039832,-460.0,0.00018351,2]
[368596373,1751223039841,-320.60110058,0.00018351,2]
[368596374,1751223039851,-460.0,0.00018351,2]
[368596375,1751223039860,-460.0,0.00018351,2]
[368596376,1751223039869,-460.0,0.00018351,2]
[368596377,1751223039879,-538.52,0.00018351,2]
[368596378,1751223039888,-460.0,0.00018351,2]
[368596379,1751223039897,-460.0,0.00018351,2]
[368596380,1751223039906,-460.0,0.00018352,2]
[368596381,1751223039915,-460.0,0.00018354,2]
[368596382,1751223039925,-2640.81,0.00018621,2]
[368596383,1751223039934,-460.0,0.00018621,2]
[368596384,1751223039943,-460.0,0.00018621,2]
[368596386,1751223039953,-2698.79,0.00018621,2]
[368596387,1751223039962,-460.0,0.00018621,2]
[368596388,1751223039972,-495.09,0.00018621,2]
[368596389,1751223039981,-460.0,0.00018621,2]
[368596390,1751223039991,-460.0,0.00018621,2]
[368596391,1751223040000,-460.0,0.00018621,2]
[368596393,1751223040009,-460.0,0.00018621,2]
[368596395,1751223040019,-3403.78,0.00018621,2]
[368596397,1751223040028,-3125.27,0.00018621,2]
[368596398,1751223040038,-3379.8,0.00018621,2]
[368596399,1751223040048,-475.17,0.00018621,2]
[368596400,1751223040057,-460.0,0.00018621,2]
[368596401,1751223040067,-1904.63,0.00018621,2]
[368596402,1751223040076,-460.0,0.00018621,2]
[368596403,1751223040085,-474.4,0.00018621,2]
[368596404,1751223040094,-460.0,0.00018621,2]
[368596405,1751223040104,-460.0,0.00018621,2]
[368596406,1751223040113,-460.0,0.00018621,2]
[368596407,1751223040122,-1711.81,0.00018621,2]
[368596408,1751223040132,-460.0,0.00018621,2]
[368596409,1751223040141,-1294.22,0.00018621,2]
[368596410,1751223040151,-460.0,0.00018621,2]
[368596411,1751223040161,-460.0,0.00018622,2]
[368596412,1751223040171,-460.0,0.00018622,2]
[368596413,1751223040181,-460.0,0.00018622,2]
[368596414,1751223040190,-346.74976442,0.00018622,2]
[368596415,1751223040200,-460.0,0.00018622,2]
[368596416,1751223040210,-460.0,0.00018622,2]
[368596417,1751223040220,-460.0,0.00018622,2]
[368596418,1751223040230,-460.0,0.00018622,2]
[368596419,1751223040241,-460.0,0.00018622,2]
[368596420,1751223040251,-460.0,0.00018622,2]
[368596421,1751223040262,-460.0,0.00018622,2]
[368596422,1751223040271,-338.16,0.00018622,2]
[368596423,1751223040283,-598.66,0.00018622,2]
[368596424,1751223040293,-591.01,0.00018622,2]
[368596425,1751223040303,-675.33,0.00018622,2]
[368596426,1751223040312,-460.0,0.00018622,2]
[368596427,1751223040322,-564.0,0.00018622,2]
[368596428,1751223040332,-460.0,0.00018622,2]
[368596429,1751223040341,-998.47,0.00018622,2]
[368596430,1751223040351,-460.0,0.00018622,2]
[368596431,1751223040361,-460.0,0.00018622,2]
[368596432,1751223040370,-476.42,0.00018622,2]
[368596433,1751223040381,-460.0,0.00018622,2]
[368596434,1751223040391,-3758.81,0.00018622,2]
[368596435,1751223040401,-460.0,0.00018622,2]
[368596436,1751223040411,-460.0,0.00018622,2]
[368596437,1751223040420,-543.37,0.00018622,2]
[368596438,1751223040430,-1316.8,0.00018622,2]
[368596439,1751223040439,-460.0,0.00018622,2]
[368596440,1751223040450,-460.0,0.00018622,2]
[368596441,1751223040460,-665.27,0.00018622,2]
[368596442,1751223040472,-1077.02,0.00018622,2]
[368596443,1751223040482,-460.0,0.00018622,2]
[368596444,1751223040491,-460.0,0.00018622,2]
[368596445,1751223040501,-460.0,0.00018622,2]
[368596446,1751223040511,-781.12,0.00018622,2]
[368596447,1751223040521,-460.0,0.00018622,2]
[368596448,1751223040530,-460.0,0.00018622,2]
[368596449,1751223040540,-460.0,0.00018622,2]
[368596450,1751223040759,-1110.61,0.00018622,2]
[368596451,1751223040769,-460.0,0.00018622,2]
[368596452,1751223040779,-554.53,0.00018622,2]
[368596453,1751223040788,-420.47972615,0.00018623,2]
[368596454,1751223040797,-460.0,0.00018623,2]
[368596456,1751223040807,-460.0,0.00018623,2]
[368596457,1751223040816,-460.0,0.00018623,2]
[368596458,1751223040825,-460.0,0.00018623,2]
[368596459,1751223040834,-460.0,0.00018623,2]
[368596460,1751223040844,-501.16,0.00018623,2]
[368596461,1751223040853,-648.71,0.00018623,2]
[368596462,1751223040862,-460.0,0.00018623,2]
[368596463,1751223040872,-460.0,0.00018623,2]
[368596464,1751223040882,-460.0,0.00018623,2]
[368596465,1751223040891,-637.61,0.00018623,2]
[368596467,1751223040900,-572.94,0.00018623,2]
[368596469,1751223040910,-460.0,0.00018623,2]
[368596471,1751223040919,-673.79,0.00018623,2]
[368596473,1751223040929,-1102.64,0.00018623,2]
[368596474,1751223040938,-460.0,0.00018623,2]
[368596475,1751223040948,-460.0,0.00018623,2]
[368596476,1751223040957,-460.0,0.00018623,2]
[368596477,1751223040966,-460.0,0.00018623,2]
[368596478,1751223040976,-1332.91,0.00018623,2]
[368596479,1751223040985,-460.0,0.00018623,2]
[368596480,1751223040994,-906.67,0.00018623,2]
[368596481,1751223041004,-177.11346123,0.00018623,2]
[368596482,1751223041013,-460.0,0.00018623,2]
[368596483,1751223041022,-774.46,0.00018623,2]
[368596484,1751223041031,-460.0,0.00018623,2]
[368596485,1751223041040,-460.0,0.00018623,2]
[368596486,1751223041050,-313.28654037,0.00018623,2]
[368596487,1751223041059,-1593.95,0.00018623,2]
[368596488,1751223041069,-460.0,0.00018623,2]
[368596489,1751223041079,-460.0,0.00018623,2]
[368596491,1751223041088,-736.5,0.00018623,2]
[368596493,1751223041097,-1544.83,0.00018623,2]
[368596495,1751223041106,-460.0,0.00018623,2]
[368596497,1751223041116,-4598.83,0.00018623,2]
[368596499,1751223041126,-460.0,0.00018624,2]
[368596501,1751223041135,-460.0,0.00018625,2]
[368596503,1751223041144,-460.0,0.00018625,2]
[368596505,1751223041154,-678.18,0.00018625,2]
[368596507,1751223041163,-538.8,0.00018625,2]
[368596509,1751223041172,-460.0,0.00018625,2]
[368596511,1751223041181,-460.0,0.00018625,2]
[368596513,1751223041190,-460.0,0.00018625,2]
[368596515,1751223041199,-460.0,0.00018626,2]
[368596517,1751223041209,-1842.54214459,0.00018797,2]
[368596519,1751223041218,-2640.81,0.00018895,2]
[368596521,1751223041227,-460.0,0.00018895,2]
[368596523,1751223041236,-460.0,0.00018895,2]
[368596525,1751223041246,-2698.79,0.00018895,2]
[368596527,1751223041255,-460.0,0.00018895,2]
[368596529,1751223041264,-495.09,0.00018895,2]
[368596531,1751223041274,-460.0,0.00018895,2]
[368596533,1751223041283,-460.0,0.00018895,2]
[368596535,1751223041293,-460.0,0.00018895,2]
[368596537,1751223041303,-460.0,0.00018895,2]
[368596539,1751223041312,-3403.78,0.00018895,2]
[368596541,1751223041322,-3125.27,0.00018895,2]
[368596543,1751223041331,-3379.8,0.00018895,2]
[368596545,1751223041340,-475.17,0.00018895,2]
[368596547,1751223041350,-460.0,0.00018895,2]
[368596549,1751223041359,-1904.63,0.00018895,2]
[368596552,1751223041370,-460.0,0.00018895,2]
[368596554,1751223041380,-474.4,0.00018895,2]
[368596556,1751223041390,-460.0,0.00018895,2]
[368596558,1751223041400,-460.0,0.00018895,2]
[368596560,1751223041410,-460.0,0.00018895,2]
[368596562,1751223041419,-1711.81,0.00018895,2]
[368596564,1751223041430,-460.0,0.00018895,2]
[368596566,1751223041439,-1294.22,0.00018895,2]
[368596568,1751223041450,-460.0,0.00018895,2]
[368596570,1751223041460,-460.0,0.00018896,2]
[368596572,1751223041473,-271.24,0.00018896,2]
[368596574,1751223041482,-460.0,0.00018896,2]
[368596576,1751223041492,-460.0,0.00018896,2]
[368596578,1751223041502,-460.0,0.00018896,2]
[368596580,1751223041512,-460.0,0.00018896,2]
[368596582,1751223041522,-460.0,0.00018896,2]
[368596584,1751223041531,-598.66,0.00018896,2]
[368596586,1751223041540,-591.01,0.00018896,2]
[368596588,1751223041550,-675.33,0.00018896,2]
[368596590,1751223041560,-460.0,0.00018896,2]
[368596592,1751223041570,-564.0,0.00018896,2]
[368596594,1751223041579,-460.0,0.00018896,2]
[368596596,1751223041588,-998.47,0.00018896,2]
[368596598,1751223041597,-460.0,0.00018896,2]
[368596600,1751223041607,-460.0,0.00018896,2]
[368596602,1751223041618,-476.42,0.00018896,2]
[368596604,1751223041627,-460.0,0.00018896,2]
[368596606,1751223041638,-3758.81,0.00018896,2]
[368596608,1751223041648,-460.0,0.00018896,2]
[368596610,1751223041658,-460.0,0.00018896,2]